[Event "Early-Titled-Tuesday-Blitz-June-18-2024"]
[Site "Chess.com"]
[Date "2024.06.18"]
[Round "5"]
[White "Resourchess"]
[Black "dhammiko"]
[Result "0-1"]
[WhiteElo "2367"]
[BlackElo "2191"]
[TimeControl "180+1"]
[EndTime "8:58:14 PDT"]
[Termination "dhammiko won by resignation"]

1. d4 {[%clk 0:03:00.9]} 1... d5 {[%clk 0:02:59.9]} 2. c4 {[%clk 0:03:00.6]}
2... Nf6 {[%clk 0:03:00]} 3. Nc3 {[%clk 0:03:00.3]} 3... e6 {[%clk 0:03:00.3]}
4. cxd5 {[%clk 0:03:00.3]} 4... Nxd5 {[%clk 0:02:59.8]} 5. Nf3 {[%clk
0:02:58.9]} 5... c6 {[%clk 0:02:58.3]} 6. e4 {[%clk 0:02:57.2]} 6... Nxc3 {[%clk
0:02:58.1]} 7. bxc3 {[%clk 0:02:57.5]} 7... Nd7 {[%clk 0:02:58.6]} 8. Bd3 {[%clk
0:02:57.1]} 8... Be7 {[%clk 0:02:54.3]} 9. O-O {[%clk 0:02:57.2]} 9... O-O
{[%clk 0:02:53.4]} 10. e5 {[%clk 0:02:48.2]} 10... f5 {[%clk 0:02:52.2]} 11.
exf6 {[%clk 0:02:45.1]} 11... Nxf6 {[%clk 0:02:49]} 12. Ne5 {[%clk 0:02:38.2]}
12... Bd6 {[%clk 0:02:44.1]} 13. Qe2 {[%clk 0:02:34.7]} 13... Qc7 {[%clk
0:02:36.4]} 14. Bf4 {[%clk 0:01:27.6]} 14... b5 {[%clk 0:02:23.4]} 15. Rae1
{[%clk 0:01:22.9]} 15... Bb7 {[%clk 0:02:20.8]} 16. h3 {[%clk 0:01:14.5]} 16...
Rae8 {[%clk 0:02:14.3]} 17. Bg5 {[%clk 0:01:07.1]} 17... Bxe5 {[%clk 0:02:04.5]}
18. dxe5 {[%clk 0:01:06.9]} 18... Nd5 {[%clk 0:02:02.6]} 19. Qe4 {[%clk
0:01:01.8]} 19... g6 {[%clk 0:02:01]} 20. c4 {[%clk 0:00:48.8]} 20... bxc4
{[%clk 0:01:51.8]} 21. Bxc4 {[%clk 0:00:47.8]} 21... c5 {[%clk 0:01:52.4]} 22.
Qh4 {[%clk 0:00:42.4]} 22... Rf5 {[%clk 0:01:39.5]} 23. Bf6 {[%clk 0:00:35.4]}
23... Nxf6 {[%clk 0:01:02.7]} 24. exf6 {[%clk 0:00:33.1]} 24... Qc6 {[%clk
0:00:58]} 25. f3 {[%clk 0:00:28.9]} 25... Ba6 {[%clk 0:00:53.9]} 26. Bxa6 {[%clk
0:00:26.8]} 26... Qxa6 {[%clk 0:00:54.2]} 27. g4 {[%clk 0:00:24.9]} 27... Rf4
{[%clk 0:00:41.4]} 28. Qg5 {[%clk 0:00:22.3]} 28... Qd6 {[%clk 0:00:40.6]} 29.
Rd1 {[%clk 0:00:20.9]} 29... Rd4 {[%clk 0:00:39.7]} 30. Rxd4 {[%clk 0:00:17.5]}
30... cxd4 {[%clk 0:00:38]} 31. Qh6 {[%clk 0:00:17.1]} 31... Qc7 {[%clk
0:00:37]} 32. Kg2 {[%clk 0:00:14.6]} 32... e5 {[%clk 0:00:35.1]} 33. Rd1 {[%clk
0:00:14.2]} 33... Rb8 {[%clk 0:00:33.8]} 34. Rd2 {[%clk 0:00:13.1]} 34... Qf7
{[%clk 0:00:33.1]} 35. Qg5 {[%clk 0:00:12.9]} 35... Qe6 {[%clk 0:00:32.1]} 36.
h4 {[%clk 0:00:12.5]} 36... Rb6 {[%clk 0:00:31.9]} 37. h5 {[%clk 0:00:10.6]}
37... Qxf6 {[%clk 0:00:31.7]} 38. Qh6 {[%clk 0:00:10.3]} 38... gxh5 {[%clk
0:00:29.7]} 39. Qxh5 {[%clk 0:00:10.8]} 39... Rb7 {[%clk 0:00:25.2]} 40. Qe8+
{[%clk 0:00:10.7]} 40... Kg7 {[%clk 0:00:24.9]} 41. Qh5 {[%clk 0:00:08.6]} 41...
Rf7 {[%clk 0:00:23.8]} 42. Rd3 {[%clk 0:00:08.3]} 42... Re7 {[%clk 0:00:20.5]}
43. g5 {[%clk 0:00:07.9]} 43... Qg6 {[%clk 0:00:20.5]} 44. Qg4 {[%clk
0:00:07.7]} 44... Qxd3 {[%clk 0:00:20.3]} 0-1

[Event "Early-Titled-Tuesday-Blitz-June-18-2024"]
[Site "Chess.com"]
[Date "2024.06.18"]
[Round "5"]
[White "giovannibrandao7"]
[Black "LileKoridze"]
[Result "0-1"]
[WhiteElo "2290"]
[BlackElo "2434"]
[TimeControl "180+1"]
[EndTime "8:58:15 PDT"]
[Termination "LileKoridze won by resignation"]

1. e4 {[%clk 0:03:00.9]} 1... c5 {[%clk 0:02:58.2]} 2. Nf3 {[%clk 0:03:00.2]}
2... d6 {[%clk 0:02:58.7]} 3. b3 {[%clk 0:02:52.3]} 3... Nf6 {[%clk 0:02:55.3]}
4. d3 {[%clk 0:02:50.8]} 4... g6 {[%clk 0:02:53.1]} 5. Bb2 {[%clk 0:02:50.5]}
5... Bg7 {[%clk 0:02:53.4]} 6. Nbd2 {[%clk 0:02:50.1]} 6... O-O {[%clk
0:02:53.4]} 7. Be2 {[%clk 0:02:45.7]} 7... Nc6 {[%clk 0:02:52.6]} 8. O-O {[%clk
0:02:45.1]} 8... d5 {[%clk 0:02:48.2]} 9. exd5 {[%clk 0:02:43.4]} 9... Nxd5
{[%clk 0:02:48]} 10. Bxg7 {[%clk 0:02:41.2]} 10... Kxg7 {[%clk 0:02:48.9]} 11.
Nc4 {[%clk 0:02:39.3]} 11... Qc7 {[%clk 0:02:34]} 12. Qd2 {[%clk 0:02:30.7]}
12... b5 {[%clk 0:02:31.2]} 13. Ne3 {[%clk 0:02:29.8]} 13... Nf4 {[%clk
0:02:28.8]} 14. Rfe1 {[%clk 0:02:16.8]} 14... Bb7 {[%clk 0:02:27.7]} 15. Bf1
{[%clk 0:02:15.8]} 15... Nd4 {[%clk 0:02:23.2]} 16. Ng5 {[%clk 0:01:44.2]} 16...
h6 {[%clk 0:02:11.7]} 17. Ne4 {[%clk 0:01:38.3]} 17... f5 {[%clk 0:02:03.9]} 18.
Nc3 {[%clk 0:01:33.6]} 18... Qc6 {[%clk 0:01:58.8]} 19. f3 {[%clk 0:01:09.7]}
19... e5 {[%clk 0:00:59.8]} 20. Qf2 {[%clk 0:00:53.5]} 20... Nh3+ {[%clk
0:00:51.8]} 21. gxh3 {[%clk 0:00:41.2]} 21... Nxf3+ {[%clk 0:00:51.9]} 22. Qxf3
{[%clk 0:00:42.1]} 22... Qxf3 {[%clk 0:00:51]} 23. Bg2 {[%clk 0:00:42.7]} 23...
Qh5 {[%clk 0:00:43.7]} 24. Bxb7 {[%clk 0:00:42.4]} 24... Rad8 {[%clk 0:00:43.9]}
25. Bg2 {[%clk 0:00:26.6]} 25... f4 {[%clk 0:00:42.9]} 26. Ng4 {[%clk
0:00:26.8]} 26... f3 {[%clk 0:00:42.9]} 27. Bf1 {[%clk 0:00:27.1]} 27... Rd4
{[%clk 0:00:32.7]} 28. Ne4 {[%clk 0:00:24.6]} 28... Qh4 {[%clk 0:00:26.1]} 29.
Kh1 {[%clk 0:00:20.8]} 29... h5 {[%clk 0:00:25.9]} 30. Ngf2 {[%clk 0:00:20.4]}
30... g5 {[%clk 0:00:19.2]} 31. Nxc5 {[%clk 0:00:18.6]} 31... Qxf2 {[%clk
0:00:14.2]} 32. Ne6+ {[%clk 0:00:18.6]} 32... Kg8 {[%clk 0:00:14.7]} 33. Nxd4
{[%clk 0:00:18.6]} 33... Qxd4 {[%clk 0:00:13.9]} 34. Re4 {[%clk 0:00:09.8]}
34... Qf2 {[%clk 0:00:12.5]} 35. Rxe5 {[%clk 0:00:07.7]} 35... Qd2 {[%clk
0:00:08.6]} 36. d4 {[%clk 0:00:04.8]} 36... Qxd4 {[%clk 0:00:06.3]} 37. Rae1
{[%clk 0:00:03.8]} 37... Qf4 {[%clk 0:00:05]} 38. Bd3 {[%clk 0:00:02.8]} 38...
f2 {[%clk 0:00:04.1]} 0-1

[Event "Early-Titled-Tuesday-Blitz-June-18-2024"]
[Site "Chess.com"]
[Date "2024.06.18"]
[Round "5"]
[White "Nechitaylo_Nikita"]
[Black "Blitzking642"]
[Result "1-0"]
[WhiteElo "2344"]
[BlackElo "2502"]
[TimeControl "180+1"]
[EndTime "8:58:16 PDT"]
[Termination "Nechitaylo_Nikita won by resignation"]

1. d4 {[%clk 0:03:00.9]} 1... d5 {[%clk 0:02:59.4]} 2. c4 {[%clk 0:03:01.4]}
2... e6 {[%clk 0:02:59.2]} 3. Nc3 {[%clk 0:03:01.5]} 3... h6 {[%clk 0:02:58.9]}
4. cxd5 {[%clk 0:02:54.5]} 4... exd5 {[%clk 0:02:58.7]} 5. Nf3 {[%clk
0:02:51.5]} 5... Nf6 {[%clk 0:02:58.7]} 6. Bf4 {[%clk 0:02:52.1]} 6... Bd6
{[%clk 0:02:58.9]} 7. Bg3 {[%clk 0:02:50.3]} 7... Bxg3 {[%clk 0:02:58.4]} 8.
hxg3 {[%clk 0:02:50.6]} 8... O-O {[%clk 0:02:59.2]} 9. e3 {[%clk 0:02:50.4]}
9... c6 {[%clk 0:02:57]} 10. Bd3 {[%clk 0:02:50.6]} 10... Qe7 {[%clk 0:02:51]}
11. Qb1 {[%clk 0:02:34.5]} 11... Re8 {[%clk 0:02:46.9]} 12. b4 {[%clk
0:02:33.1]} 12... Ne4 {[%clk 0:02:41.5]} 13. Bxe4 {[%clk 0:02:31]} 13... dxe4
{[%clk 0:02:40.5]} 14. Nd2 {[%clk 0:02:31.7]} 14... Bf5 {[%clk 0:02:38.8]} 15.
O-O {[%clk 0:02:18.5]} 15... Nd7 {[%clk 0:02:38.8]} 16. Re1 {[%clk 0:01:28.2]}
16... Nf6 {[%clk 0:02:36.7]} 17. b5 {[%clk 0:01:28.2]} 17... c5 {[%clk
0:02:32.6]} 18. f3 {[%clk 0:01:13.4]} 18... cxd4 {[%clk 0:01:43.2]} 19. exd4
{[%clk 0:01:14.3]} 19... Qd7 {[%clk 0:01:41.5]} 20. Qb4 {[%clk 0:00:45.6]} 20...
exf3 {[%clk 0:01:23.1]} 21. Nxf3 {[%clk 0:00:46.5]} 21... Nd5 {[%clk 0:01:17.8]}
22. Nxd5 {[%clk 0:00:25.4]} 22... Qxd5 {[%clk 0:01:18.7]} 23. Rxe8+ {[%clk
0:00:08.2]} 23... Rxe8 {[%clk 0:01:16.7]} 24. Qc5 {[%clk 0:00:04.9]} 24... Qd8
{[%clk 0:00:48.6]} 25. Qxf5 {[%clk 0:00:03.7]} 25... Re2 {[%clk 0:00:47]} 26.
Rd1 {[%clk 0:00:01.4]} 26... g6 {[%clk 0:00:44.3]} 27. Qf4 {[%clk 0:00:01.6]}
27... Qf8 {[%clk 0:00:40]} 28. Ne5 {[%clk 0:00:01.2]} 28... g5 {[%clk
0:00:37.8]} 29. Qf5 {[%clk 0:00:01.4]} 29... Rxa2 {[%clk 0:00:36.6]} 30. Rf1
{[%clk 0:00:02.1]} 30... Re2 {[%clk 0:00:18.3]} 31. Nxf7 {[%clk 0:00:02.3]}
31... Qg7 {[%clk 0:00:18.7]} 32. Qc8+ {[%clk 0:00:01.6]} 32... Kh7 {[%clk
0:00:18.7]} 33. Qf5+ {[%clk 0:00:02.2]} 33... Kg8 {[%clk 0:00:18.4]} 34. Ne5
{[%clk 0:00:02.9]} 34... Rd2 {[%clk 0:00:14.2]} 35. Qe6+ {[%clk 0:00:03.3]}
35... Kh7 {[%clk 0:00:13.4]} 36. Rf7 {[%clk 0:00:02.5]} 36... Rd1+ {[%clk
0:00:12.9]} 37. Kh2 {[%clk 0:00:03]} 37... Rh1+ {[%clk 0:00:12.3]} 38. Kxh1
{[%clk 0:00:03.1]} 1-0

[Event "Early-Titled-Tuesday-Blitz-June-18-2024"]
[Site "Chess.com"]
[Date "2024.06.18"]
[Round "5"]
[White "KarlEmilElmer"]
[Black "rachidhuilda"]
[Result "0-1"]
[WhiteElo "2211"]
[BlackElo "2402"]
[TimeControl "180+1"]
[EndTime "8:58:18 PDT"]
[Termination "rachidhuilda won on time"]

1. d4 {[%clk 0:03:00.9]} 1... d5 {[%clk 0:02:58.6]} 2. c4 {[%clk 0:03:01]} 2...
c6 {[%clk 0:02:58.7]} 3. Nf3 {[%clk 0:02:57.7]} 3... Nf6 {[%clk 0:02:58.6]} 4.
e3 {[%clk 0:02:54.3]} 4... Bf5 {[%clk 0:02:49.8]} 5. Nc3 {[%clk 0:02:34.2]} 5...
e6 {[%clk 0:02:49.2]} 6. Nh4 {[%clk 0:02:24.3]} 6... Bg4 {[%clk 0:02:48.3]} 7.
f3 {[%clk 0:02:23]} 7... Bh5 {[%clk 0:02:47.1]} 8. g3 {[%clk 0:02:12.6]} 8...
Nbd7 {[%clk 0:02:44]} 9. cxd5 {[%clk 0:02:06.4]} 9... cxd5 {[%clk 0:02:09.9]}
10. Bd3 {[%clk 0:02:04.8]} 10... Be7 {[%clk 0:01:59.4]} 11. O-O {[%clk
0:02:04.3]} 11... O-O {[%clk 0:01:53.7]} 12. e4 {[%clk 0:01:59.2]} 12... dxe4
{[%clk 0:01:50.3]} 13. fxe4 {[%clk 0:02:00.1]} 13... Bxd1 {[%clk 0:01:48.6]} 14.
Rxd1 {[%clk 0:01:59.5]} 14... Nb6 {[%clk 0:01:44.6]} 15. Be3 {[%clk 0:01:40.8]}
15... Rc8 {[%clk 0:01:44.1]} 16. Bf2 {[%clk 0:01:35.6]} 16... Nc4 {[%clk
0:01:42.4]} 17. Rab1 {[%clk 0:01:21.4]} 17... Nd7 {[%clk 0:01:41.3]} 18. Nf3
{[%clk 0:01:20.4]} 18... b6 {[%clk 0:01:38.6]} 19. d5 {[%clk 0:01:15.3]} 19...
e5 {[%clk 0:01:29.9]} 20. Nb5 {[%clk 0:01:06.3]} 20... Nd6 {[%clk 0:01:01.9]}
21. Nxa7 {[%clk 0:01:01.7]} 21... f6 {[%clk 0:00:54.8]} 22. Nc6 {[%clk
0:01:00.8]} 22... Qe8 {[%clk 0:00:52.1]} 23. Rbc1 {[%clk 0:00:59.5]} 23... Qf7
{[%clk 0:00:41.9]} 24. Nh4 {[%clk 0:00:52.8]} 24... Kh8 {[%clk 0:00:38.4]} 25.
b4 {[%clk 0:00:44.4]} 25... b5 {[%clk 0:00:36.3]} 26. Na7 {[%clk 0:00:32.7]}
26... Rxc1 {[%clk 0:00:34.5]} 27. Rxc1 {[%clk 0:00:33.6]} 27... Ra8 {[%clk
0:00:25.6]} 28. Rc7 {[%clk 0:00:18.1]} 28... Qe8 {[%clk 0:00:20.8]} 29. Nxb5
{[%clk 0:00:15.8]} 29... Rxa2 {[%clk 0:00:16.4]} 30. Nxd6 {[%clk 0:00:10.6]}
30... Bxd6 {[%clk 0:00:17.3]} 31. Rb7 {[%clk 0:00:09.3]} 31... Ra1+ {[%clk
0:00:15.2]} 32. Kg2 {[%clk 0:00:09.7]} 32... Ra2 {[%clk 0:00:14.8]} 33. Bb5
{[%clk 0:00:09.2]} 33... Qc8 {[%clk 0:00:07]} 34. Rxd7 {[%clk 0:00:09.1]} 34...
Rxf2+ {[%clk 0:00:07.5]} 35. Kxf2 {[%clk 0:00:08.3]} 35... Qc2+ {[%clk
0:00:07.7]} 36. Kf3 {[%clk 0:00:07.7]} 36... Qc3+ {[%clk 0:00:07.5]} 37. Kg4
{[%clk 0:00:07]} 37... Qxb4 {[%clk 0:00:07.9]} 38. Rd8+ {[%clk 0:00:06.3]} 38...
Bf8 {[%clk 0:00:08.5]} 39. Nf5 {[%clk 0:00:05.3]} 39... g6 {[%clk 0:00:07.5]}
40. Nd6 {[%clk 0:00:03.6]} 40... Kg7 {[%clk 0:00:07.9]} 41. Ne8+ {[%clk
0:00:03.1]} 41... Kf7 {[%clk 0:00:07.5]} 42. Rd7+ {[%clk 0:00:02]} 42... Kxe8
{[%clk 0:00:06.3]} 0-1

[Event "Early-Titled-Tuesday-Blitz-June-18-2024"]
[Site "Chess.com"]
[Date "2024.06.18"]
[Round "5"]
[White "Pelusiansky"]
[Black "Lucky_Puncher"]
[Result "1-0"]
[WhiteElo "2438"]
[BlackElo "2593"]
[TimeControl "180+1"]
[EndTime "8:58:21 PDT"]
[Termination "Pelusiansky won on time"]

1. e4 {[%clk 0:03:00.9]} 1... c5 {[%clk 0:02:57.6]} 2. Nf3 {[%clk 0:02:59.5]}
2... d6 {[%clk 0:02:56]} 3. Bb5+ {[%clk 0:02:58.2]} 3... Nd7 {[%clk 0:02:56]} 4.
O-O {[%clk 0:02:53.9]} 4... a6 {[%clk 0:02:55.2]} 5. Bd3 {[%clk 0:02:51.7]} 5...
Ngf6 {[%clk 0:02:55.7]} 6. c3 {[%clk 0:02:46.6]} 6... b5 {[%clk 0:02:55.5]} 7.
a4 {[%clk 0:02:43.6]} 7... Bb7 {[%clk 0:02:52.9]} 8. axb5 {[%clk 0:02:41.3]}
8... axb5 {[%clk 0:02:53.1]} 9. Rxa8 {[%clk 0:02:38]} 9... Qxa8 {[%clk 0:02:53]}
10. Bxb5 {[%clk 0:02:38.9]} 10... Bxe4 {[%clk 0:02:52.3]} 11. Na3 {[%clk
0:02:29.6]} 11... e6 {[%clk 0:02:48.7]} 12. d4 {[%clk 0:02:27]} 12... cxd4
{[%clk 0:02:45.4]} 13. Nxd4 {[%clk 0:02:12.7]} 13... Bxg2 {[%clk 0:02:41.3]} 14.
Re1 {[%clk 0:02:12.8]} 14... Be7 {[%clk 0:02:25.6]} 15. f3 {[%clk 0:02:12.6]}
15... Bh3 {[%clk 0:02:25.8]} 16. Nc6 {[%clk 0:02:03.3]} 16... Nd5 {[%clk
0:02:05.3]} 17. c4 {[%clk 0:01:38.9]} 17... Nc7 {[%clk 0:01:54.3]} 18. Ba4
{[%clk 0:01:24.5]} 18... d5 {[%clk 0:01:26.3]} 19. Ne5 {[%clk 0:01:15.1]} 19...
O-O {[%clk 0:00:46.2]} 20. Nxd7 {[%clk 0:01:12]} 20... Rd8 {[%clk 0:00:45.8]}
21. c5 {[%clk 0:01:00.2]} 21... Na6 {[%clk 0:00:37.3]} 22. Be3 {[%clk
0:00:55.7]} 22... d4 {[%clk 0:00:30.1]} 23. Bxd4 {[%clk 0:00:49.6]} 23... Nxc5
{[%clk 0:00:30.3]} 24. Bxc5 {[%clk 0:00:42.7]} 24... Bxc5+ {[%clk 0:00:29.4]}
25. Kh1 {[%clk 0:00:42.6]} 25... Bb4 {[%clk 0:00:21.4]} 26. Re4 {[%clk
0:00:34.2]} 26... Be7 {[%clk 0:00:18.4]} 27. Rd4 {[%clk 0:00:25.9]} 27... h6
{[%clk 0:00:18]} 28. Nc4 {[%clk 0:00:23.5]} 28... Bf5 {[%clk 0:00:11.8]} 29. b3
{[%clk 0:00:17.7]} 29... Bg5 {[%clk 0:00:09.2]} 30. Nce5 {[%clk 0:00:17]} 30...
Be7 {[%clk 0:00:05.3]} 31. Nc6 {[%clk 0:00:17]} 31... Re8 {[%clk 0:00:04.4]} 32.
Nb6 {[%clk 0:00:15.7]} 32... Qa6 {[%clk 0:00:02.1]} 33. Nc4 {[%clk 0:00:15.3]}
33... Bf8 {[%clk 0:00:01.8]} 34. Nb4 {[%clk 0:00:15.2]} 34... Qa8 {[%clk
0:00:01.9]} 35. Bxe8 {[%clk 0:00:14.9]} 35... Qxe8 {[%clk 0:00:02.8]} 36. Nd6
{[%clk 0:00:13.7]} 36... Qb8 {[%clk 0:00:02.9]} 37. Nxf5 {[%clk 0:00:12.1]}
37... exf5 {[%clk 0:00:03.5]} 38. Nc6 {[%clk 0:00:12.5]} 38... Qc7 {[%clk
0:00:03.2]} 39. Rc4 {[%clk 0:00:09.6]} 39... Qb7 {[%clk 0:00:03.7]} 40. Qd3
{[%clk 0:00:09.2]} 40... Qa7 {[%clk 0:00:03.1]} 41. Nxa7 {[%clk 0:00:09.2]} 1-0

[Event "Early-Titled-Tuesday-Blitz-June-18-2024"]
[Site "Chess.com"]
[Date "2024.06.18"]
[Round "5"]
[White "JJDAREK"]
[Black "Schattman"]
[Result "1/2-1/2"]
[WhiteElo "2332"]
[BlackElo "2497"]
[TimeControl "180+1"]
[EndTime "8:58:22 PDT"]
[Termination "Game drawn by repetition"]

1. Nf3 {[%clk 0:02:38]} 1... d5 {[%clk 0:02:58.5]} 2. c4 {[%clk 0:02:37]} 2...
e6 {[%clk 0:02:58.8]} 3. g3 {[%clk 0:02:34.8]} 3... Nf6 {[%clk 0:02:57.7]} 4.
Bg2 {[%clk 0:02:33.5]} 4... Be7 {[%clk 0:02:57]} 5. O-O {[%clk 0:02:31.6]} 5...
O-O {[%clk 0:02:57]} 6. d4 {[%clk 0:02:31.6]} 6... dxc4 {[%clk 0:02:56.6]} 7.
Qa4 {[%clk 0:02:31.6]} 7... a6 {[%clk 0:02:55.2]} 8. Qxc4 {[%clk 0:02:31.2]}
8... b5 {[%clk 0:02:54.8]} 9. Qc2 {[%clk 0:02:31.8]} 9... Bb7 {[%clk 0:02:55.3]}
10. Bd2 {[%clk 0:02:32]} 10... Be4 {[%clk 0:02:51.6]} 11. Qc1 {[%clk 0:02:31]}
11... Nbd7 {[%clk 0:02:42.3]} 12. Ba5 {[%clk 0:02:29.5]} 12... Rc8 {[%clk
0:02:40]} 13. Nbd2 {[%clk 0:02:28.3]} 13... Bb7 {[%clk 0:02:33.8]} 14. b4 {[%clk
0:02:24.2]} 14... Qe8 {[%clk 0:02:30]} 15. a3 {[%clk 0:02:16.3]} 15... Nb6
{[%clk 0:02:23]} 16. Qc2 {[%clk 0:02:13]} 16... Bd5 {[%clk 0:02:04.2]} 17. e4
{[%clk 0:02:10.1]} 17... Bc4 {[%clk 0:02:04.3]} 18. Rfe1 {[%clk 0:02:00.1]}
18... h6 {[%clk 0:01:55.7]} 19. e5 {[%clk 0:01:53.5]} 19... Nfd5 {[%clk
0:01:52.5]} 20. Ne4 {[%clk 0:01:52.1]} 20... Qd7 {[%clk 0:01:29.2]} 21. h4
{[%clk 0:01:50.5]} 21... f5 {[%clk 0:01:23.2]} 22. exf6 {[%clk 0:01:49.8]} 22...
Nxf6 {[%clk 0:01:22.2]} 23. Nc5 {[%clk 0:01:28.1]} 23... Bxc5 {[%clk 0:01:15.2]}
24. dxc5 {[%clk 0:01:29]} 24... Ng4 {[%clk 0:01:03.5]} 25. Rad1 {[%clk
0:01:07.7]} 25... Nd5 {[%clk 0:00:54.4]} 26. Ne5 {[%clk 0:00:58.1]} 26... Nxe5
{[%clk 0:00:50.8]} 27. Rxe5 {[%clk 0:00:59]} 27... Rf6 {[%clk 0:00:36.4]} 28.
Rde1 {[%clk 0:00:55.3]} 28... Rcf8 {[%clk 0:00:33.7]} 29. f4 {[%clk 0:00:55.4]}
29... Qf7 {[%clk 0:00:23.5]} 30. Bh3 {[%clk 0:00:47.6]} 30... Kh8 {[%clk
0:00:15.9]} 31. Bxe6 {[%clk 0:00:38.6]} 31... Rxe6 {[%clk 0:00:16.1]} 32. Rxe6
{[%clk 0:00:38.7]} 32... Nxf4 {[%clk 0:00:15.9]} 33. Re7 {[%clk 0:00:26]} 33...
Qf6 {[%clk 0:00:08.2]} 34. gxf4 {[%clk 0:00:17.3]} 34... Qxf4 {[%clk 0:00:06.7]}
35. Qg2 {[%clk 0:00:13.4]} 35... Qd4+ {[%clk 0:00:05.7]} 36. R1e3 {[%clk
0:00:10.8]} 36... Bd5 {[%clk 0:00:03.4]} 37. Qg3 {[%clk 0:00:03.6]} 37... Qd1+
{[%clk 0:00:03.2]} 38. Re1 {[%clk 0:00:03.2]} 38... Qd4+ {[%clk 0:00:02.7]} 39.
R1e3 {[%clk 0:00:03.4]} 39... Qd1+ {[%clk 0:00:02.4]} 40. Re1 {[%clk 0:00:03.7]}
40... Qd4+ {[%clk 0:00:02.3]} 41. R1e3 {[%clk 0:00:04]} 1/2-1/2

[Event "Early-Titled-Tuesday-Blitz-June-18-2024"]
[Site "Chess.com"]
[Date "2024.06.18"]
[Round "5"]
[White "NovozhilovSemen"]
[Black "AlexeiShirov"]
[Result "0-1"]
[WhiteElo "2644"]
[BlackElo "2884"]
[TimeControl "180+1"]
[EndTime "8:58:25 PDT"]
[Termination "AlexeiShirov won by resignation"]

1. d4 {[%clk 0:03:00.9]} 1... d5 {[%clk 0:02:59.4]} 2. c4 {[%clk 0:03:00]} 2...
c6 {[%clk 0:02:58.9]} 3. Nf3 {[%clk 0:02:59.1]} 3... Nf6 {[%clk 0:02:58.5]} 4.
e3 {[%clk 0:02:59.1]} 4... Bf5 {[%clk 0:02:57.6]} 5. Nc3 {[%clk 0:02:58.5]} 5...
e6 {[%clk 0:02:57.2]} 6. Nh4 {[%clk 0:02:58.5]} 6... Be4 {[%clk 0:02:57.1]} 7.
f3 {[%clk 0:02:58.1]} 7... Bg6 {[%clk 0:02:56.8]} 8. Bd2 {[%clk 0:02:56.8]} 8...
Nbd7 {[%clk 0:02:45.7]} 9. Nxg6 {[%clk 0:02:52.9]} 9... hxg6 {[%clk 0:02:45.1]}
10. Qc2 {[%clk 0:02:53.1]} 10... Rc8 {[%clk 0:02:27.7]} 11. c5 {[%clk
0:02:49.8]} 11... b6 {[%clk 0:02:26.5]} 12. b4 {[%clk 0:02:49.7]} 12... a5
{[%clk 0:02:23.5]} 13. a3 {[%clk 0:02:44.3]} 13... Nh5 {[%clk 0:02:19.9]} 14.
Ba6 {[%clk 0:01:58.5]} 14... Rb8 {[%clk 0:02:12.3]} 15. Kf2 {[%clk 0:01:57.3]}
15... b5 {[%clk 0:02:04.3]} 16. Nxb5 {[%clk 0:01:56.6]} 16... Rxb5 {[%clk
0:01:54.2]} 17. Bxb5 {[%clk 0:01:55.1]} 17... cxb5 {[%clk 0:01:53.9]} 18. a4
{[%clk 0:01:55.2]} 18... bxa4 {[%clk 0:01:48.3]} 19. b5 {[%clk 0:01:55]} 19...
Be7 {[%clk 0:01:36.9]} 20. c6 {[%clk 0:01:43.5]} 20... Nb6 {[%clk 0:01:32.9]}
21. Bxa5 {[%clk 0:01:23]} 21... Bd6 {[%clk 0:01:31.1]} 22. c7 {[%clk 0:01:13.3]}
22... Qxc7 {[%clk 0:01:19.4]} 23. Qxc7 {[%clk 0:01:08.7]} 23... Bxc7 {[%clk
0:01:18.7]} 24. Rhc1 {[%clk 0:01:02.3]} 24... Kd7 {[%clk 0:01:17.7]} 25. Bxb6
{[%clk 0:00:57.1]} 25... Bxb6 {[%clk 0:01:16.9]} 26. Rxa4 {[%clk 0:00:56.8]}
26... Rb8 {[%clk 0:01:15.8]} 27. Ra6 {[%clk 0:00:55.1]} 27... Nf6 {[%clk
0:01:14.8]} 28. g4 {[%clk 0:00:41.4]} 28... Ne8 {[%clk 0:01:13.9]} 29. Rc6
{[%clk 0:00:37.8]} 29... Bc7 {[%clk 0:01:12.3]} 30. Rc5 {[%clk 0:00:33.6]} 30...
Rb7 {[%clk 0:01:09.8]} 31. Ra8 {[%clk 0:00:31.2]} 31... Nd6 {[%clk 0:01:03.8]}
32. Rg8 {[%clk 0:00:29.5]} 32... Ke7 {[%clk 0:00:55.6]} 33. h4 {[%clk
0:00:20.2]} 33... Nxb5 {[%clk 0:00:53.2]} 34. h5 {[%clk 0:00:16.5]} 34... gxh5
{[%clk 0:00:50.8]} 35. gxh5 {[%clk 0:00:17.4]} 35... Kf6 {[%clk 0:00:50.5]} 36.
f4 {[%clk 0:00:17.8]} 36... Nd6 {[%clk 0:00:49.5]} 37. Rc2 {[%clk 0:00:15.7]}
37... Ne4+ {[%clk 0:00:48.6]} 38. Kf3 {[%clk 0:00:16.2]} 38... Bd6 {[%clk
0:00:48.3]} 39. Rg2 {[%clk 0:00:16.3]} 39... Rb1 {[%clk 0:00:39.4]} 40. R8xg7
{[%clk 0:00:16.5]} 40... Rh1 {[%clk 0:00:37.9]} 41. Rh7 {[%clk 0:00:16.6]} 41...
Rh3+ {[%clk 0:00:34.4]} 42. Ke2 {[%clk 0:00:17]} 42... Ba3 {[%clk 0:00:32.1]}
43. Rgg7 {[%clk 0:00:15.3]} 43... Nd6 {[%clk 0:00:31.4]} 44. Rg5 {[%clk
0:00:14.6]} 44... Bc1 {[%clk 0:00:30.2]} 45. Rh8 {[%clk 0:00:11.1]} 45... Bxe3
{[%clk 0:00:28.3]} 46. h6 {[%clk 0:00:11.5]} 46... Bxf4 {[%clk 0:00:26.2]} 47.
Rg7 {[%clk 0:00:10.9]} 47... Rxh6 {[%clk 0:00:25]} 48. Rxh6+ {[%clk 0:00:10.4]}
48... Bxh6 {[%clk 0:00:22.8]} 49. Rg4 {[%clk 0:00:10.6]} 49... Nf5 {[%clk
0:00:22.7]} 50. Kd3 {[%clk 0:00:10.9]} 50... Be3 {[%clk 0:00:23.2]} 0-1